fUST/lending_fUST_20251213
["ID","MTS","AMOUNT","RATE_DAILY","PERIOD"]
[398366790,1765559100999,-268.03723172,0.00043561,120]
[398366791,1765559101036,-500.0,0.00043561,120]
[398366793,1765559101075,-500.0,0.00043561,60]
[398366795,1765559101111,-1249.97,0.00043561,120]
[398366798,1765559101147,-1147.67,0.00043561,120]
[398366807,1765559101352,-891.27,0.00043561,120]
[398366810,1765559101396,-560.86,0.00043561,120]
[398366812,1765559101436,-500.0,0.00043561,120]
[398366815,1765559101475,-518.91,0.00043561,120]
[398366817,1765559101513,-500.0,0.00043561,120]
[398366819,1765559101552,-864.65,0.00043561,120]
[398366822,1765559101592,-500.0,0.00043561,90]
[398366825,1765559101630,-500.0,0.00043561,120]
[398366827,1765559101671,-500.38,0.00043561,120]
[398366830,1765559101714,-500.0,0.00043561,120]
[398366832,1765559101757,-725.76,0.00043561,120]
[398366834,1765559101804,-500.0,0.00043561,120]
[398366837,1765559101853,-500.0,0.00043561,120]
[398366840,1765559101902,-557.79,0.00043561,120]
[398366842,1765559101949,-171.47554375,0.00043561,120]
[398366845,1765559101995,-500.0,0.00043561,120]
[398366847,1765559102050,-510.67,0.00043561,120]
[398366848,1765559102098,-500.0,0.00043561,120]
[398366849,1765559102144,-628.67,0.00043561,120]
[398366850,1765559102188,-929.97,0.00043561,120]
[398366851,1765559102232,-633.36,0.00043561,120]
[398366852,1765559102274,-919.84,0.00043561,120]
[398366853,1765559102315,-578.76,0.00043561,120]
[398366856,1765559102370,-932.03,0.00043561,120]
[398366858,1765559102423,-500.0,0.00043561,120]
[398366861,1765559102472,-549.96,0.00043561,120]
[398366864,1765559102522,-958.01,0.00043561,120]
[398366867,1765559102574,-813.54,0.00043561,120]
[398366870,1765559102635,-500.0,0.00043561,120]
[398366873,1765559102688,-500.0,0.00043561,120]
[398366875,1765559102735,-652.93,0.00043561,120]
[398366878,1765559102783,-620.84,0.00043561,120]
[398366880,1765559102824,-1013.55,0.00043561,120]
[398366883,1765559102864,-630.98,0.00043561,120]
[398366885,1765559102904,-548.16,0.00043561,120]
[398366888,1765559102948,-697.09,0.00043561,120]
[398366891,1765559102993,-1179.79,0.00043561,120]
[398366893,1765559103051,-1837.39,0.00043561,120]
[398366895,1765559103108,-1962.36,0.00043561,120]
[398366898,1765559103163,-1872.12,0.00043561,30]
[398366901,1765559103218,-1714.27,0.00043561,120]
[398366902,1765559103271,-500.0,0.00043561,120]
[398366903,1765559103321,-1605.92,0.00043561,120]
[398366906,1765559103371,-770.95,0.00043561,120]
[398366909,1765559103424,-553.77,0.00043561,120]
[398366912,1765559103473,-715.37,0.00043561,120]
[398366915,1765559103526,-639.0,0.00043561,30]
[398366917,1765559103582,-502.88,0.00043561,120]
[398366920,1765559103637,-500.0,0.00043561,120]
[398366923,1765559103700,-500.0,0.00043561,120]
[398366926,1765559103760,-508.28,0.00043561,120]
[398366929,1765559103811,-500.0,0.00043561,120]
[398366932,1765559103864,-500.0,0.00043561,120]
[398366935,1765559103917,-963.45,0.00043561,120]
[398366937,1765559103969,-865.79,0.00043561,120]
[398366940,1765559104020,-2977.42,0.00043561,120]
[398366943,1765559104068,-500.0,0.00043561,120]
[398366946,1765559104117,-1656.54,0.00043561,120]
[398366949,1765559104167,-605.78,0.00043561,120]
[398366951,1765559104217,-1650.63,0.00043561,120]
[398366954,1765559104267,-930.56,0.00043561,120]
[398366957,1765559104317,-786.96,0.00043561,120]
[398366959,1765559104367,-500.0,0.00043561,120]
[398366962,1765559104419,-680.52,0.00043561,120]
[398366965,1765559104469,-1363.67,0.00043561,120]
[398366968,1765559104520,-640.61,0.00043561,120]
[398366971,1765559104571,-500.0,0.00043561,120]
[398366974,1765559104622,-568.22,0.00043561,120]
[398366977,1765559104672,-500.0,0.00043561,120]
[398366980,1765559104721,-1619.86,0.00043561,120]
[398366982,1765559104773,-703.66,0.00043561,120]
[398366985,1765559104827,-500.0,0.00043561,120]
[398366988,1765559104878,-533.28,0.00043561,120]
[398366991,1765559104930,-500.0,0.00043561,120]
[398366994,1765559104982,-567.69,0.00043561,120]
[398366997,1765559105036,-500.0,0.00043561,120]
[398366999,1765559105100,-1644.61,0.00043561,120]
[398367002,1765559105174,-654.37,0.00043561,120]
[398367004,1765559105248,-695.56,0.00043561,120]
[398367006,1765559105369,-670.85,0.00043561,120]
[398367009,1765559105433,-1226.93,0.00043561,120]
[398367012,1765559105484,-500.0,0.00043561,120]
[398367015,1765559105536,-1085.27,0.00043561,120]
[398367018,1765559105590,-1127.01,0.00043561,120]
[398367021,1765559105641,-1439.87,0.00043561,120]
[398367023,1765559105693,-838.88,0.00043561,120]
[398367026,1765559105744,-557.55,0.00043561,120]
[398367029,1765559105804,-249.17322972,0.00043561,120]
[398367032,1765559105860,-500.0,0.00043561,120]
[398367034,1765559105915,-1250.0,0.00043561,120]
[398367037,1765559105969,-571.36,0.00043561,120]
[398367040,1765559106022,-500.0,0.00043561,120]
[398367043,1765559106074,-1126.0,0.00043561,120]
[398367045,1765559106126,-684.92,0.00043561,120]
[398367048,1765559106177,-801.26,0.00043561,120]
[398367053,1765559106408,-500.0,0.00043561,120]
[398367056,1765559106456,-612.73,0.00043561,120]
[398367058,1765559106507,-428.76798312,0.00043561,120]
[398367061,1765559106557,-382.64232864,0.00043561,120]
[398367063,1765559106616,-284.43,0.00043561,120]
[398367066,1765559106689,-500.0,0.00043561,120]
[398367068,1765559106777,-509.03,0.00043561,120]
[398367071,1765559106849,-500.0,0.00043561,120]
[398367073,1765559106922,-500.0,0.00043561,120]
[398367076,1765559106975,-570.07,0.00043561,120]
[398367079,1765559107024,-570.53,0.00043561,120]
[398367082,1765559107071,-503.52,0.00043561,120]
[398367084,1765559107120,-500.0,0.00043561,120]
[398367087,1765559107169,-500.0,0.00043561,120]
[398367090,1765559107217,-500.0,0.00043561,120]
[398367093,1765559107264,-488.50092418,0.00043561,120]
[398367095,1765559107316,-956.87,0.00043561,120]
[398367098,1765559107364,-658.49,0.00043561,120]
[398367101,1765559107417,-1441.51,0.00043561,120]
[398367104,1765559107467,-157.67804504,0.00043561,120]
[398367107,1765559107517,-1390.11,0.00043561,120]
[398367109,1765559107566,-500.0,0.00043561,120]
[398367112,1765559107614,-656.63,0.00043561,120]
[398367115,1765559107668,-540.31,0.00043561,120]
[398367118,1765559107717,-612.94,0.00043561,120]
[398367121,1765559107767,-6116.92,0.00043561,120]
[398367124,1765559107822,-500.0,0.00043561,120]
[398367127,1765559107868,-500.0,0.00043561,120]
[398367130,1765559107916,-500.0,0.00043561,120]
[398367132,1765559107964,-1254.82,0.00043561,120]
[398367135,1765559108014,-1353.24,0.00043561,120]
[398367138,1765559108071,-1002.15,0.00043561,120]
[398367140,1765559108120,-727.42,0.00043561,120]
[398367143,1765559108172,-4051.53,0.00043561,120]
[398367146,1765559108221,-500.0,0.00043561,120]
[398367149,1765559108269,-500.0,0.00043561,120]
[398367152,1765559108318,-1370.61,0.00043561,120]
[398367155,1765559108366,-500.0,0.00043561,120]
[398367157,1765559108415,-500.0,0.00043561,120]
[398367160,1765559108463,-500.0,0.00043561,120]
[398367163,1765559108514,-507.99195809,0.00043561,120]
[398367166,1765559108561,-500.0,0.00043561,120]
[398367168,1765559108610,-4792.62,0.00043561,120]
[398367171,1765559108660,-500.0,0.00043561,120]
[398367174,1765559108707,-882.96,0.00043561,120]
[398367177,1765559108754,-3042.53,0.00043561,120]
[398367179,1765559108801,-500.0,0.00043561,120]
[398367182,1765559108850,-724.15,0.00043561,120]
[398367184,1765559108899,-1140.1,0.00043561,120]
[398367185,1765559108947,-1070.21,0.00043561,120]
[398367186,1765559108997,-1540.11,0.00043561,120]
[398367187,1765559109045,-3766.38,0.00043561,120]
[398367188,1765559109091,-517.69,0.00043561,120]
[398367189,1765559109142,-500.0,0.00043561,120]
[398367190,1765559109191,-500.0,0.00043561,120]
[398367192,1765559109240,-500.0,0.00043561,120]
[398367195,1765559109292,-665.47,0.00043561,120]
[398367197,1765559109345,-642.33,0.00043561,120]
[398367200,1765559109395,-2396.38,0.00043561,120]
[398367203,1765559109452,-737.24,0.00043561,120]
[398367206,1765559109500,-6822.47,0.00043561,120]
[398367209,1765559109548,-1104.83,0.00043561,120]
[398367211,1765559109593,-500.0,0.00043561,120]
[398367214,1765559109640,-500.0,0.00043561,120]
[398367217,1765559109686,-747.76,0.00043561,120]
[398367219,1765559109731,-500.0,0.00043561,120]
[398367222,1765559109779,-711.97,0.00043561,120]
[398367225,1765559109825,-529.57,0.00043561,120]
[398367227,1765559109872,-8509.4,0.00043561,120]
[398367230,1765559109918,-1295.86,0.00043561,120]
[398367233,1765559109963,-500.0,0.00043561,120]
[398367235,1765559110013,-3869.1,0.00043561,120]
[398367238,1765559110060,-821.88,0.00043561,120]
[398367241,1765559110107,-2102.78,0.00043561,120]
[398367244,1765559110152,-977.51,0.00043561,120]
[398367246,1765559110196,-757.37,0.00043561,120]
[398367249,1765559110237,-1091.49,0.00043561,30]
[398367251,1765559110278,-2193.68,0.00043561,120]
[398367254,1765559110321,-2995.42,0.00043561,120]
[398367256,1765559110368,-877.47,0.00043561,120]
[398367259,1765559110413,-500.0,0.00043561,120]
[398367262,1765559110460,-878.07,0.00043561,120]
[398367264,1765559110505,-500.0,0.00043561,120]
[398367267,1765559110550,-1473.95,0.00043561,120]
[398367269,1765559110594,-1886.97,0.00043561,120]
[398367272,1765559110636,-1507.92,0.00043561,120]
[398367275,1765559110679,-1266.98,0.00043561,120]
[398367277,1765559110725,-558.94,0.00043561,120]
[398367280,1765559110771,-500.0,0.00043561,120]
[398367282,1765559110819,-500.0,0.00043561,120]
[398367285,1765559110866,-2444.73,0.00043561,120]
[398367288,1765559110912,-633.82,0.00043561,120]
[398367290,1765559110959,-500.0,0.00043561,120]
[398367293,1765559111012,-500.0,0.00043562,120]
[398367296,1765559111059,-500.0,0.00043671,60]
[398367302,1765559111270,-200.0,0.00043737,120]
[398367304,1765559111319,-500.0,0.00043808,60]
[398367307,1765559111368,-6062.91,0.00043835,120]
[398367310,1765559111417,-1252.44645609,0.00043835,60]
[398367313,1765559111468,-239.4943454,0.00043835,120]
[398367315,1765559111516,-500.0,0.00043835,120]
[398367318,1765559111565,-776.11,0.00043835,120]
[398367321,1765559111612,-500.0,0.00043835,120]
[398367323,1765559111657,-500.0,0.00043835,120]
[398367326,1765559111701,-500.0,0.00043835,120]
[398367329,1765559111745,-500.0,0.00043835,120]
[398367331,1765559111787,-888.02,0.00043835,120]
[398367334,1765559111829,-500.0,0.00043835,120]
[398367336,1765559111870,-500.0,0.00043835,120]
[398367339,1765559111913,-809.03,0.00043835,120]
[398367341,1765559111956,-500.0,0.00043835,120]
[398367344,1765559111999,-500.0,0.00043835,120]
[398367347,1765559112044,-525.95,0.00043835,120]
[398367349,1765559112086,-557.91,0.00043835,43]
[398367352,1765559112128,-500.0,0.00043835,120]
[398367354,1765559112172,-500.0,0.00043835,120]
[398367357,1765559112215,-426.84913134,0.00043835,120]
[398367359,1765559112256,-500.0,0.00043835,120]
[398367362,1765559112301,-544.55,0.00043835,120]
[398367365,1765559112346,-918.87,0.00043835,120]
[398367367,1765559112393,-792.62,0.00043835,120]
[398367370,1765559112439,-500.0,0.00043835,120]
[398367373,1765559112484,-500.0,0.00043835,60]
[398367375,1765559112528,-1249.97,0.00043835,120]
[398367378,1765559112572,-1147.67,0.00043835,120]
[398367381,1765559112615,-891.27,0.00043835,120]
[398367383,1765559112657,-560.86,0.00043835,120]
[398367386,1765559112699,-500.0,0.00043835,120]
[398367389,1765559112741,-518.91,0.00043835,120]
[398367391,1765559112785,-500.0,0.00043835,120]
[398367394,1765559112829,-864.65,0.00043835,120]
[398367396,1765559112869,-500.0,0.00043835,90]
[398367399,1765559112911,-500.0,0.00043835,120]
[398367402,1765559112956,-500.38,0.00043835,120]
[398367404,1765559112998,-500.0,0.00043835,120]
[398367407,1765559113041,-725.76,0.00043835,120]
[398367410,1765559113084,-500.0,0.00043835,120]
[398367412,1765559113126,-500.0,0.00043835,120]
[398367415,1765559113170,-557.79,0.00043835,120]
[398367417,1765559113216,-500.0,0.00043835,120]
[398367420,1765559113266,-510.67,0.00043835,120]
[398367423,1765559113312,-500.0,0.00043835,120]
[398367425,1765559113358,-628.67,0.00043835,120]
[398367428,1765559113404,-929.97,0.00043835,120]
[398367431,1765559113450,-633.36,0.00043835,120]
[398367434,1765559113496,-919.84,0.00043835,120]
[398367436,1765559113541,-578.76,0.00043835,120]
[398367439,1765559113588,-932.03,0.00043835,120]
[398367441,1765559113633,-500.0,0.00043835,120]
[398367444,1765559113678,-549.96,0.00043835,120]
[398367446,1765559113722,-958.01,0.00043835,120]
[398367449,1765559113764,-813.54,0.00043835,120]
[398367450,1765559113810,-500.0,0.00043835,120]
[398367451,1765559113851,-500.0,0.00043835,120]
[398367452,1765559113895,-652.93,0.00043835,120]
[398367454,1765559113939,-620.84,0.00043835,120]
[398367457,1765559113983,-1013.55,0.00043835,120]
[398367459,1765559114024,-630.98,0.00043835,120]
[398367462,1765559114066,-548.16,0.00043835,120]
[398367464,1765559114108,-697.09,0.00043835,120]
[398367467,1765559114151,-1179.79,0.00043835,120]
[398367469,1765559114195,-1837.39,0.00043835,120]
[398367472,1765559114239,-1962.36,0.00043835,120]
[398367474,1765559114283,-1872.12,0.00043835,30]
[398367477,1765559114326,-1714.27,0.00043835,120]
[398367479,1765559114370,-500.0,0.00043835,120]
[398367482,1765559114413,-1605.92,0.00043835,120]
[398367484,1765559114457,-770.95,0.00043835,120]
[398367487,1765559114501,-553.77,0.00043835,120]
[398367489,1765559114544,-715.37,0.00043835,120]
[398367492,1765559114588,-639.0,0.00043835,30]
[398367494,1765559114631,-502.88,0.00043835,120]
[398367497,1765559114674,-500.0,0.00043835,120]
[398367499,1765559114716,-500.0,0.00043835,120]
[398367501,1765559114759,-508.28,0.00043835,120]
[398367504,1765559114802,-500.0,0.00043835,120]
[398367506,1765559114844,-473.66836359,0.00043835,120]
[398367509,1765559114886,-963.45,0.00043835,120]
[398367512,1765559114929,-865.79,0.00043835,120]
[398367514,1765559114972,-2977.42,0.00043835,120]
[398367517,1765559115017,-500.0,0.00043835,120]
[398367519,1765559115061,-1656.54,0.00043835,120]
[398367522,1765559115106,-605.78,0.00043835,120]
[398367524,1765559115154,-1650.63,0.00043835,120]
[398367527,1765559115201,-930.56,0.00043835,120]
[398367529,1765559115247,-786.96,0.00043835,120]
[398367532,1765559115292,-386.97351346,0.00043835,120]
[398367534,1765559115338,-680.52,0.00043835,120]
[398367537,1765559115384,-1363.67,0.00043835,120]
[398367540,1765559115430,-640.61,0.00043835,120]
[398367548,1765559115639,-500.0,0.00043835,120]
[398367551,1765559115687,-568.22,0.00043835,120]
[398367553,1765559115733,-577.45824939,0.00043835,120]
[398367556,1765559115781,-1619.86,0.00043835,120]
[398367559,1765559115827,-703.66,0.00043835,120]
[398367561,1765559115874,-500.0,0.00043835,120]
[398367564,1765559115919,-533.28,0.00043835,120]
[398367567,1765559115966,-500.0,0.00043835,120]
[398367569,1765559116012,-567.69,0.00043835,120]
[398367572,1765559116059,-500.0,0.00043835,120]
[398367575,1765559116105,-1644.61,0.00043835,120]
[398367578,1765559116152,-654.37,0.00043835,120]
[398367580,1765559116197,-695.56,0.00043835,120]
[398367583,1765559116244,-670.85,0.00043835,120]
[398367585,1765559116295,-1226.93,0.00043835,120]
[398367587,1765559116345,-606.11273117,0.00043835,120]
[398367588,1765559116401,-1085.27,0.00043835,120]
[398367589,1765559116454,-1127.01,0.00043835,120]
[398367590,1765559116501,-1439.87,0.00043835,120]
[398367591,1765559116548,-838.88,0.00043835,120]
[398367592,1765559116593,-557.55,0.00043835,120]
[398367593,1765559116640,-500.0,0.00043835,120]
[398367596,1765559116687,-1250.0,0.00043835,120]
[398367599,1765559116734,-571.36,0.00043835,120]
[398367601,1765559116784,-500.0,0.00043835,120]
[398367604,1765559116833,-1126.0,0.00043835,120]
[398367607,1765559116883,-684.92,0.00043835,120]
[398367610,1765559116931,-801.26,0.00043835,120]
[398367612,1765559116978,-205.91034378,0.00043835,120]
[398367615,1765559117026,-612.73,0.00043835,120]
[398367618,1765559117079,-284.43,0.00043835,120]
[398367621,1765559117125,-500.0,0.00043835,120]
[398367624,1765559117173,-509.03,0.00043835,120]
[398367626,1765559117220,-500.0,0.00043835,120]
[398367629,1765559117268,-500.0,0.00043835,120]
[398367632,1765559117316,-570.07,0.00043835,120]
[398367634,1765559117364,-570.53,0.00043835,120]
[398367637,1765559117412,-503.52,0.00043835,120]
[398367640,1765559117460,-500.0,0.00043835,120]
[398367643,1765559117507,-500.0,0.00043835,120]
[398367645,1765559117553,-500.0,0.00043835,120]
[398367648,1765559117600,-956.87,0.00043835,120]
[398367651,1765559117651,-658.49,0.00043835,120]
[398367653,1765559117698,-1441.51,0.00043835,120]
[398367655,1765559117745,-1390.11,0.00043835,120]
[398367657,1765559117791,-500.0,0.00043835,120]
[398367659,1765559117836,-656.63,0.00043835,120]
[398367661,1765559117883,-540.31,0.00043835,120]
[398367663,1765559117928,-612.94,0.00043835,120]
[398367665,1765559117972,-6116.92,0.00043835,120]
[398367667,1765559118020,-500.0,0.00043835,120]
[398367670,1765559118071,-500.0,0.00043835,120]
[398367671,1765559118114,-500.0,0.00043835,120]
[398367673,1765559118163,-1254.82,0.00043835,120]
[398367675,1765559118210,-1353.24,0.00043835,120]
[398367677,1765559118256,-1002.15,0.00043835,120]
[398367679,1765559118303,-727.42,0.00043835,120]
[398367681,1765559118352,-4051.53,0.00043835,120]
[398367683,1765559118399,-500.0,0.00043835,120]
[398367685,1765559118445,-500.0,0.00043835,120]
[398367687,1765559118489,-769.88,0.00043835,55]
[398367689,1765559118533,-1370.61,0.00043835,120]
[398367691,1765559118575,-500.0,0.00043835,120]
[398367693,1765559118616,-500.0,0.00043835,120]
[398367695,1765559118657,-500.0,0.00043835,120]
[398367697,1765559118697,-500.0,0.00043835,120]
[398367699,1765559118736,-4792.62,0.00043835,120]
[398367700,1765559118776,-500.0,0.00043835,120]
[398367702,1765559118823,-882.96,0.00043835,120]
[398367704,1765559118865,-3042.53,0.00043835,120]
[398367706,1765559118906,-500.0,0.00043835,120]
[398367707,1765559118950,-724.15,0.00043835,120]
[398367709,1765559118994,-1140.1,0.00043835,120]
[398367711,1765559119037,-1070.21,0.00043835,120]
[398367712,1765559119080,-1540.11,0.00043835,120]
[398367713,1765559119124,-3766.38,0.00043835,120]
[398367715,1765559119168,-517.69,0.00043835,120]
[398367717,1765559119209,-500.0,0.00043835,120]
[398367719,1765559119249,-500.0,0.00043835,120]
[398367721,1765559119291,-500.0,0.00043835,120]
[398367722,1765559119336,-665.47,0.00043835,120]
[398367724,1765559119379,-642.33,0.00043835,120]
[398367726,1765559119422,-2396.38,0.00043835,120]
[398367728,1765559119465,-6822.47,0.00043835,120]
[398367730,1765559119508,-1104.83,0.00043835,120]
[398367732,1765559119550,-500.0,0.00043835,120]
[398367734,1765559119590,-500.0,0.00043835,120]
[398367736,1765559119631,-737.24,0.00043835,120]
[398367738,1765559119672,-747.76,0.00043835,120]
[398367739,1765559119714,-500.0,0.00043835,120]
[398367741,1765559119759,-711.97,0.00043835,120]
[398367743,1765559119805,-529.57,0.00043835,120]
[398367745,1765559119848,-8509.4,0.00043835,120]
[398367747,1765559119898,-1295.86,0.00043835,120]
[398367749,1765559119943,-500.0,0.00043835,120]
[398367754,1765559120142,-3869.1,0.00043835,120]
[398367756,1765559120187,-821.88,0.00043835,120]
[398367758,1765559120232,-2102.78,0.00043835,120]
[398367760,1765559120276,-977.51,0.00043835,120]
[398367762,1765559120316,-757.37,0.00043835,120]
[398367763,1765559120362,-1091.49,0.00043835,30]
[398367765,1765559120407,-2193.68,0.00043835,120]
[398367767,1765559120453,-2995.42,0.00043835,120]
[398367769,1765559120496,-877.47,0.00043835,120]
[398367771,1765559120539,-500.0,0.00043835,120]
[398367773,1765559120582,-878.07,0.00043835,120]
[398367775,1765559120626,-500.0,0.00043835,120]
[398367777,1765559120668,-1473.95,0.00043835,120]
[398367779,1765559120709,-1886.97,0.00043835,120]
[398367781,1765559120750,-1507.92,0.00043835,120]
[398367783,1765559120792,-1266.98,0.00043835,120]
[398367785,1765559120832,-558.94,0.00043835,120]
[398367787,1765559120873,-500.0,0.00043835,120]
[398367789,1765559120913,-500.0,0.00043835,120]
[398367791,1765559120955,-2444.73,0.00043835,120]
[398367793,1765559120994,-633.82,0.00043835,120]
[398367794,1765559121036,-500.0,0.00043835,120]
[398367796,1765559121080,-500.0,0.00043836,120]
[398367798,1765559121122,-621.0,0.0004388,120]
[398367800,1765559121166,-500.0,0.00043945,60]
[398367802,1765559121209,-1271.19930899,0.00044,120]
[398367804,1765559121254,-1662.48619912,0.00044,120]
[398367806,1765559121298,-1496.90930116,0.00044,120]
[398367808,1765559121342,-1874.62038204,0.00044,120]
[398367810,1765559121384,-1013.00763222,0.00044,120]
[398367812,1765559121426,-1228.74036592,0.00044,120]
[398367814,1765559121469,-500.0,0.00044,120]
[398367816,1765559121510,-1000.0,0.00044,120]
[398367818,1765559121550,-862.45510229,0.00044,120]
[398367820,1765559121590,-500.0,0.00044082,60]
[398367822,1765559121630,-303.11407693,0.000441,120]
[398367824,1765559121670,-162.59188295,0.000441,120]
[398367825,1765559121711,-203.41218339,0.000441,120]
[398367827,1765559121755,-251.28709178,0.000441,120]
[398367829,1765559121800,-160.14971848,0.000441,120]
[398367831,1765559121842,-197.60708562,0.000441,120]
[398367833,1765559121885,-6062.91,0.00044109,120]
[398367835,1765559121925,-1252.44645609,0.00044109,60]
[398367837,1765559121966,-500.0,0.00044109,120]
[398367839,1765559122006,-776.11,0.00044109,120]
[398367840,1765559122048,-500.0,0.00044109,120]
[398367842,1765559122090,-500.0,0.00044109,120]
[398367844,1765559122133,-500.0,0.00044109,120]
[398367846,1765559122177,-500.0,0.00044109,120]
[398367848,1765559122220,-888.02,0.00044109,120]
[398367850,1765559122263,-500.0,0.00044109,120]
[398367852,1765559122307,-500.0,0.00044109,120]
[398367854,1765559122349,-809.03,0.00044109,120]
[398367856,1765559122390,-500.0,0.00044109,120]
[398367858,1765559122431,-500.0,0.00044109,120]
[398367860,1765559122471,-525.95,0.00044109,120]
[398367862,1765559122511,-500.0,0.00044109,120]
[398367864,1765559122554,-500.0,0.00044109,120]
[398367866,1765559122597,-500.0,0.00044109,120]
[398367867,1765559122641,-544.55,0.00044109,120]
[398367869,1765559122691,-918.87,0.00044109,120]
[398367871,1765559122745,-792.62,0.00044109,120]
[398367873,1765559122797,-500.0,0.00044109,120]
[398367875,1765559122850,-500.0,0.00044109,60]
[398367877,1765559122906,-1249.97,0.00044109,120]
[398367879,1765559122959,-1147.67,0.00044109,120]
[398367881,1765559123017,-891.27,0.00044109,120]
[398367883,1765559123074,-560.86,0.00044109,120]
[398367885,1765559123129,-500.0,0.00044109,120]
[398367887,1765559123187,-518.91,0.00044109,120]
[398367889,1765559123243,-500.0,0.00044109,120]
[398367891,1765559123301,-864.65,0.00044109,120]
[398367893,1765559123358,-409.25759944,0.00044109,90]
[398367895,1765559123419,-500.0,0.00044109,120]
[398367897,1765559123474,-500.38,0.00044109,120]
[398367899,1765559123531,-500.0,0.00044109,120]
[398367901,1765559123588,-725.76,0.00044109,120]
[398367903,1765559123644,-500.0,0.00044109,120]
[398367905,1765559123700,-500.0,0.00044109,120]
[398367907,1765559123755,-557.79,0.00044109,120]
[398367908,1765559123813,-500.0,0.00044109,120]
[398367909,1765559123869,-510.67,0.00044109,120]
[398367910,1765559123927,-500.0,0.00044109,120]
[398367912,1765559123987,-628.67,0.00044109,120]
[398367914,1765559124047,-929.97,0.00044109,120]
[398367916,1765559124112,-633.36,0.00044109,120]
[398367918,1765559124177,-919.84,0.00044109,120]
[398367921,1765559124240,-578.76,0.00044109,120]
[398367923,1765559124304,-932.03,0.00044109,120]
[398367924,1765559124362,-500.0,0.00044109,120]
[398367926,1765559124423,-549.96,0.00044109,120]
[398367928,1765559124482,-958.01,0.00044109,120]
[398367930,1765559124543,-813.54,0.00044109,120]
[398367932,1765559124601,-500.0,0.00044109,120]
[398367934,1765559124659,-500.0,0.00044109,120]
[398367939,1765559124883,-652.93,0.00044109,120]
[398367941,1765559124950,-620.84,0.00044109,120]
[398367943,1765559125022,-1013.55,0.00044109,120]
[398367945,1765559125086,-630.98,0.00044109,120]
[398367947,1765559125160,-548.16,0.00044109,120]
[398367949,1765559125233,-697.09,0.00044109,120]
[398367951,1765559125306,-1179.79,0.00044109,120]
[398367953,1765559125378,-1837.39,0.00044109,120]
[398367955,1765559125452,-1962.36,0.00044109,120]
[398367957,1765559125526,-1872.12,0.00044109,30]
[398367959,1765559125600,-1714.27,0.00044109,120]
[398367961,1765559125674,-500.0,0.00044109,120]
[398367963,1765559125743,-1605.92,0.00044109,120]
[398367965,1765559125814,-770.95,0.00044109,120]
[398367967,1765559125887,-553.77,0.00044109,120]
[398367969,1765559125956,-715.37,0.00044109,120]
[398367970,1765559126021,-639.0,0.00044109,30]
[398367972,1765559126092,-502.88,0.00044109,120]
[398367974,1765559126164,-500.0,0.00044109,120]
[398367976,1765559126234,-500.0,0.00044109,120]